Cogmind - Beta 12 @@@ ROGUE MODE // 2023.10.08 @ 17:23:30 Player: Finestep Result: Self-destructed Performance ------------- Evolutions (6) 3000 Regions Visited (18) 3600 Robots Destroyed (233) 1165 Value Destroyed (5995) 5995 Prototype IDs (44) 880 Alien Tech Used (3) 600 Bonus (1690) 1690 TOTAL SCORE: 16930 Bonus ------- High Alert Combat Kills 1090 Met Data Miner 300 Met Zhirov 300 Cogmind --------- Core Integrity 1012/1150 Matter 1/300 Energy 350/350 System Corruption 1% Temperature Cool (0) Movement Flying (109) Ox1 Location -4/Armory Parts ------- > --- POWER (2) -------- Enhanced Fission Core Backup Power VII > --- PROPULSION (6) --- Improved Cesium-ion Thruster Field Propulsion Drive Field Propulsion Array > --- UTILITY (10) ----- Small Storage Unit Long-range Sensor Array Experimental Signal Interpreter Advanced Melee Analysis Suite Improved Utility Shielding Layered Medium Armor Plating Improved Hacking Suite Advanced Hacking Suite Advanced Hacking Suite Advanced System Shield > --- WEAPON (2) ------- Phase Cannon Ionic Axe > --- INVENTORY (8) ---- Impulse Thruster Impulse Thruster Impulse Thruster Energy Well (350) Advanced Terrain Scan Processor Improved Transmission Jammer Experimental Propulsion Shielding Mini Smartbomb Launcher Peak State ------------ > --- POWER ------------ Enhanced Fission Core Backup Power VII > --- PROPULSION ------- Improved Cesium-ion Thruster Field Propulsion Drive Impulse Thruster Impulse Thruster Impulse Thruster Impulse Thruster > --- UTILITY ---------- Small Storage Unit Long-range Sensor Array Experimental Signal Interpreter Advanced Melee Analysis Suite Improved Utility Shielding Layered Medium Armor Plating Improved Hacking Suite Advanced Hacking Suite Advanced Hacking Suite Advanced System Shield > --- WEAPON ----------- Mini Smartbomb Launcher Ionic Axe > --- INVENTORY -------- Impulse Thruster Energy Well Advanced Sensor Array Advanced Terrain Scan Processor Improved Transmission Jammer Phase Cannon Heavy Missile Launcher [Rating: 122] Favorites ----------- Power Backup Power VII Engine Heavy Ion Engine Power Core Backup Power VII Reactor Cold Fusion Reactor Propulsion Improved Cesium-ion Thruster Treads Light Treads Leg Aluminum Leg Wheel Armored Huge Wheel Flight Unit Improved Cesium-ion Thruster Utility Improved Hacking Suite Device Long-range Sensor Array Storage Small Storage Unit Processor Advanced Signal Interpreter Hackware Improved Hacking Suite Protection Improved Utility Shielding Weapon Light Assault Rifle Energy Gun EM Pulse Gun Energy Cannon Phase Cannon Ballistic Gun Light Assault Rifle Ballistic Cannon Assault Cannon Launcher Mini Smartbomb Launcher Special Weapon Mining Laser Impact Weapon Heavy Mace Slashing Weapon Ionic Axe Build | -11 -10 -10 -10 -9 -8 -7 -6 -6 -6 -6 -5 -5 -5 -5 -5 -4 -4 -4 ------- Run | Jun Mat Min Exi Min Mat Fac Fac Low Low Dat Pro Fac Upp Upp Zhi Pro Fac Arm Slots Evolved 12 | . . . . . 4 2 2 . . . . 2 . . . . 2 . Power 1 | . . . . . . . . . . . . . . . . . 1 . Propulsion 3 | . . . . . 1 1 . . . . . . . . . . 1 . Utility 8 | . . . . . 3 1 2 . . . . 2 . . . . . . Weapon . | . . . . . . . . . . . . . . . . . . . Parts Attached 266 | 8 19 1 2 3 54 38 41 2 8 . 2 47 . . 5 4 3 29 Power 22 | 1 1 . . . 4 3 3 . . . . 7 . . . . 1 2 Engine 10 | 1 1 . . . 4 . . . . . . 4 . . . . . . Core 9 | . . . . . . 3 2 . . . . 1 . . . . 1 2 Reactor 3 | . . . . . . . 1 . . . . 2 . . . . . . Propulsion 41 | 2 5 . . . 15 6 1 1 . . . 4 . . . . 1 6 Treads 15 | . 4 . . . 10 1 . . . . . . . . . . . . Leg 2 | 2 . . . . . . . . . . . . . . . . . . Wheel 4 | . 1 . . . 3 . . . . . . . . . . . . . Hover . | . . . . . . . . . . . . . . . . . . . Flight 20 | . . . . . 2 5 1 1 . . . 4 . . . . 1 6 Utility 94 | 2 4 . 2 1 12 14 22 1 . . 2 18 . . 5 2 . 9 Device 30 | 1 2 . . . 2 5 9 . . . 2 6 . . 1 1 . 1 Storage 6 | 1 2 . 2 . . 1 . . . . . . . . . . . . Processor 12 | . . . . 1 2 2 2 . . . . 4 . . . . . 1 Hackware 12 | . . . . . . 2 4 . . . . 2 . . 1 . . 3 Protection 34 | . . . . . 8 4 7 1 . . . 6 . . 3 1 . 4 Artifact . | . . . . . . . . . . . . . . . . . . . Weapon 109 | 3 9 1 . 2 23 15 15 . 8 . . 18 . . . 2 1 12 Energy Gun 3 | 2 1 . . . . . . . . . . . . . . . . . Energy Cannon 29 | . . . . . . 2 6 . 4 . . 8 . . . 1 1 7 Ballistic Gun 29 | 1 6 1 . 1 13 7 . . . . . . . . . . . . Ballistic Cannon 1 | . . . . . 1 . . . . . . . . . . . . . Launcher 17 | . . . . 1 7 . 4 . . . . 3 . . . . . 2 Special Weapon 5 | . 2 . . . 2 1 . . . . . . . . . . . . Impact Weapon 1 | . . . . . . 1 . . . . . . . . . . . . Slashing Weapon 24 | . . . . . . 4 5 . 4 . . 7 . . . 1 . 3 Piercing Weapon . | . . . . . . . . . . . . . . . . . . . Special Melee Weapon . | . . . . . . . . . . . . . . . . . . . Unidentified Prototypes 15 | . . . . . 4 . 3 1 . . . 4 . . 3 . . . Parts Lost 16 | . 4 . . . 2 2 4 . . 1 . 1 . . . . 2 . Power 4 | . . . . . . 1 1 . . 1 . . . . . . 1 . Propulsion 2 | . 1 . . . . . . . . . . . . . . . 1 . Utility 3 | . 1 . . . 1 . . . . . . 1 . . . . . . Weapon 7 | . 2 . . . 1 1 3 . . . . . . . . . . . Highest Loss Streak 3 | . 1 . . . 1 1 3 . . 1 . 1 . . . . 2 . To Critical Strikes . | . . . . . . . . . . . . . . . . . . . Average Slot Usage (%) 90 | . 99 100 100 100 83 88 91 85 81 81 75 87 94 94 93 94 93 92 Engine 4 | . 14 14 14 14 9 . . . . . . 3 . . . . . . Core 3 | . . . . . . 6 5 6 6 6 . 1 5 5 5 5 9 7 Treads 8 | . 20 28 28 28 15 14 . . . . . . . . . . . . Wheel 1 | . 4 . . . 5 . . . . . . . . . . . . . Flight 12 | . . . . . . 11 20 19 18 18 18 17 22 22 22 22 24 26 Device 6 | . 13 14 14 8 2 6 6 6 6 6 6 6 5 5 5 5 5 5 Storage 7 | . 14 14 14 14 9 6 6 6 6 6 6 5 5 5 5 5 5 5 Processor 9 | . . . . 5 9 14 11 6 6 6 6 15 16 16 13 11 10 10 Hackware 10 | . . . . . . 7 20 19 18 18 18 14 16 16 19 22 20 20 Protection 8 | . . . . . 15 4 6 12 12 12 12 11 11 11 10 10 10 10 Ballistic Gun 8 | . 24 28 28 28 15 7 1 . . . . . . . . . . . Launcher 1 | . . . . . . . 3 . . . . 3 5 5 5 5 3 2 Slashing Weapon 2 | . . . . . . 3 5 6 5 6 6 4 5 5 5 4 5 4 Naked Turns . | . . . . . . . . . . . . . . . . . . . Heaviest Build 64 | 13 28 28 28 28 64 59 30 22 25 22 15 30 30 30 30 34 37 46 Greatest Support 88 | 20 40 40 40 40 66 88 25 32 32 32 32 33 33 33 33 33 40 42 Greatest Overweight (x) 2 | . 2 . . . 2 . 1 . . . . 1 . . . 1 1 1 Average Overweight (x) . | . . . . . 1 . . . . . . . . . . . . . Largest Inventory Capacity 20 | 8 15 15 20 15 15 15 8 8 8 8 8 8 8 8 8 8 8 8 Average Capacity 10 | 6 14 15 15 15 15 11 8 8 8 8 8 8 8 8 8 8 8 8 Most Carried 15 | 6 15 15 15 15 15 15 8 8 8 8 8 8 8 8 8 8 8 8 Average Carried 10 | 4 13 15 14 15 14 10 7 7 7 8 7 7 8 8 7 7 7 7 Final Capacity 15 | 8 15 15 15 15 15 8 8 8 8 8 8 8 8 8 8 8 8 8 Final Carried 15 | 6 15 15 15 15 15 8 8 8 8 8 8 8 8 8 8 8 8 8 Class Distribution -------------------- 30% | Hacker-Sprinter 29% | Mutant 24% | Hacker-Scout 12% | Scavenger-Mutant 3% | Hacker-Mutant Dominant Class ---------------- Mutant | -10/Materials Mutant | -10/Mines Mutant | -10/Exiles Mutant | -9/Mines Mutant | -8/Materials Hacker-Scout | -7/Factory Hacker-Scout | -6/Factory Hacker-Sprinter | -6/Lower Caves Hacker-Sprinter | -6/Lower Caves Hacker-Sprinter | -6/Data Miner Hacker-Sprinter | -5/Proximity Caves Hacker-Scout | -5/Factory Hacker-Scout | -5/Upper Caves Hacker-Scout | -5/Upper Caves Hacker-Scout | -5/Zhirov Hacker-Sprinter | -4/Proximity Caves Hacker-Sprinter | -4/Factory Hacker-Sprinter | -4/Armory Resources | -11 -10 -10 -10 -9 -8 -7 -6 -6 -6 -6 -5 -5 -5 -5 -5 -4 -4 -4 ----------- Run | Jun Mat Min Exi Min Mat Fac Fac Low Low Dat Pro Fac Upp Upp Zhi Pro Fac Arm Matter Collected 5018 | 225 426 6 30 104 1854 659 406 47 72 . 34 572 100 101 60 52 170 100 Remotely . | . . . . . . . . . . . . . . . . . . . Salvage Created 7938 | 83 757 . . 92 2494 1183 841 . . . 118 1291 100 199 181 154 345 100 Parts 462 | 8 58 . . 9 128 55 77 . . . 4 60 2 7 5 24 17 8 Haulers Intercepted 19 | . 2 . . . 6 5 2 . . . . 4 . . . . . . Recyclers Shooed 14 | . 1 . . . 10 1 . . . . . 1 . . . . 1 . Parts Field Recycled . | . . . . . . . . . . . . . . . . . . . Retrieved Matter . | . . . . . . . . . . . . . . . . . . . Parts Self-Destructed 38 | . . . . . . . . . 10 . . . 1 3 3 21 . . Prevented 1 | . . . . . . . . . . . 1 . . . . . . . Kills | -11 -10 -10 -10 -9 -8 -7 -6 -6 -6 -6 -5 -5 -5 -5 -5 -4 -4 -4 ------- Run | Jun Mat Min Exi Min Mat Fac Fac Low Low Dat Pro Fac Upp Upp Zhi Pro Fac Arm Combat Hostiles Destroyed 142 | . 18 . . 6 56 6 10 . . . . 15 1 3 . 15 11 1 Melee 9 | . . . . . . . 3 . . . . 2 . 1 . 2 1 . Guns 49 | . 18 . . 3 22 6 . . . . . . . . . . . . Cannons 10 | . . . . . 9 . . . . . . . . . . . . 1 AOE 74 | . . . . 3 25 . 7 . . . . 13 1 2 . 13 10 . Classes Destroyed 19 | 2 6 . . . 6 1 2 . . . 1 . . . . 1 . . Worker 24 | . 3 . . . 7 5 9 . . . . . . . . . . . Builder 13 | . . . . . 3 3 6 . . . . 1 . . . . . . Tunneler 4 | 1 . . . . . 1 1 . . . . 1 . . . . . . Hauler 19 | . 2 . . . 6 5 2 . . . . 4 . . . . . . Recycler 14 | 1 . . . . 2 5 1 . . . . 3 . . . . 2 . Mechanic 4 | . . . . . 2 . 1 . . . . 1 . . . . . . Operator 6 | . 2 . . . . 2 1 . . . . 1 . . . . . . Drone 2 | . . . . . . . . . . . . . . . . 2 . . Watcher 19 | . 2 . . . 4 1 6 . . . . 4 . . . . 1 1 Swarmer 56 | . 6 . . 4 7 3 4 . . . . 10 . . . 13 9 . Cutter 2 | . . . . . . . 2 . . . . . . . . . . . Grunt 58 | . 12 . . 2 38 . . . . . . 4 . 2 . . . . Brawler 2 | . . . . . 2 . . . . . . . . . . . . . Duelist 2 | . . . . . 1 . . . . . . . . 1 . . . . Protector 2 | . . . . . 2 . . . . . . . . . . . . . Sentry 8 | . . . . . 6 2 . . . . . . . . . . . . Hunter 6 | . . . . . . 1 3 . . . . 1 1 . . . . . Programmer 4 | . . . . . . . 1 . . . . . . . . . 2 1 Samaritan 3 | . . . . . . . . . . . 3 . . . . . . . Best Kill Streak 12 | 2 3 . . 4 10 8 12 . . . . 11 1 3 . 5 7 1 Combat Bots Only 10 | . 3 . . 4 10 3 4 . . . . 8 1 3 . 5 6 1 Max Kills in Single Turn 7 | 1 1 . . 2 4 1 7 . . . 1 5 1 1 . 3 3 1 Gunslinging . | . . . . . . . . . . . . . . . . . . . Exploded 5 | . . . . 2 3 . 3 . . . . 5 1 1 . 3 3 . Melee 1 | . . . . . . . 1 . . . . 1 . 1 . 1 1 . Uniques/NPCs Destroyed . | . . . . . . . . . . . . . . . . . . . Combat | -11 -10 -10 -10 -9 -8 -7 -6 -6 -6 -6 -5 -5 -5 -5 -5 -4 -4 -4 -------- Run | Jun Mat Min Exi Min Mat Fac Fac Low Low Dat Pro Fac Upp Upp Zhi Pro Fac Arm Damage Taken 6081 | . 815 . . 83 2266 835 977 . . 96 . 578 37 27 . 12 247 108 Core 977 | . 132 . . . 212 118 315 . . . . 126 . . . . 53 21 Absorbed by Shields 62 | . . . . . 62 . . . . . . . . . . . . . Redirected to Shielding 198 | . . . . . 24 . 113 . . . . 61 . . . . . . Regen/Repaired (Parts) 129 | . . . . . . . . . . . . 85 . . . . . 44 Core Remaining (%) 73 | 100 . . . 47 61 83 . . . . 62 . . . . 87 . . Volleys Fired 498 | 2 113 . . 14 194 38 17 . 10 . . 24 2 4 . 42 16 22 Largest 2 | 2 2 . . 2 2 2 1 . 1 . . 1 1 1 . 1 1 1 Hottest 100 | 80 100 . . 40 100 100 90 . 85 . . 85 80 80 . 85 85 85 Shots Fired 818 | 4 220 . . 26 358 73 17 . 10 . . 24 2 4 . 42 16 22 Gun 581 | 4 217 . . 24 270 66 . . . . . . . . . . . . Cannon 171 | . . . . . 59 6 15 . 10 . . 16 . . . 36 8 21 Launcher 60 | . . . . 2 27 . 2 . . . . 8 2 4 . 6 8 1 Special 6 | . 3 . . . 2 1 . . . . . . . . . . . . Kinetic 626 | . 207 . . 24 329 66 . . . . . . . . . . . . Thermal 112 | . 3 . . . 2 1 15 . 10 . . 16 . . . 36 8 21 Explosive 60 | . . . . 2 27 . 2 . . . . 8 2 4 . 6 8 1 Electromagnetic 20 | 4 10 . . . . 6 . . . . . . . . . . . . Robot Hit Streak 14 | 2 10 . . 6 14 12 3 . . . . 4 . 1 . . 2 4 Robot Miss Streak 4 | . 4 . . 3 4 3 2 . . . . 1 . . . . . . Penetration Max . | . . . . . . . . . . . . . . . . . . . Secondary Targets 6 | . 1 . . 1 4 . . . . . . . . . . . . . Max Gunslinging Chain 1 | . 1 . . 1 1 . . . . . . . . . . . . . Shots Hit Robots 526 | 2 130 . . 14 213 74 32 . . 1 3 37 2 4 4 2 5 3 Core Hits 413 | 2 59 . . 10 181 38 37 . . . 1 36 2 7 3 12 20 5 Critical Kills 1 | . . . . 1 . . . . . . . . . . . . . . Critical Parts Destroyed 1 | . 1 . . . . . . . . . . . . . . . . . Critical Strikes 10 | . 1 . . 1 2 1 2 . . . . 3 . . . . . . Destroy 2 | . 1 . . 1 . . . . . . . . . . . . . . Blast 2 | . . . . . 2 . . . . . . . . . . . . . Sever 6 | . . . . . . 1 2 . . . . 3 . . . . . . Melee Attacks 320 | . . . . . . 48 97 5 13 6 4 87 4 4 4 15 11 22 Impact 3 | . . . . . . 3 . . . . . . . . . . . . Slashing 317 | . . . . . . 45 97 5 13 6 4 87 4 4 4 15 11 22 Piercing . | . . . . . . . . . . . . . . . . . . . Sneak Attacks 41 | . . . . . . 14 11 . . 1 3 8 1 . . . 2 1 Combat Hostiles . | . . . . . . . . . . . . . . . . . . . Follow-up Attacks . | . . . . . . . . . . . . . . . . . . . Damage Inflicted 24384 | 28 1109 . . 261 6807 2985 4186 . . 171 459 3911 331 682 438 1193 1576 247 Guns 4664 | 28 1101 . . 114 2539 882 . . . . . . . . . . . . Cannons 1221 | . . . . . 917 81 31 . . . . 120 . . . . . 72 Explosions 10179 | . . . . 147 3351 . 2448 . . . . 1314 119 402 . 1059 1253 86 Melee 8312 | . . . . . . 2022 1707 . . 171 459 2477 212 280 438 134 323 89 Ramming 8 | . 8 . . . . . . . . . . . . . . . . . Kinetic 5488 | . 1036 . . 114 3456 882 . . . . . . . . . . . . Thermal 223 | . . . . . . . 31 . . . . 120 . . . . . 72 Explosive 10179 | . . . . 147 3351 . 2448 . . . . 1314 119 402 . 1059 1253 86 Electromagnetic 174 | 28 65 . . . . 81 . . . . . . . . . . . . Impact 244 | . . . . . . 244 . . . . . . . . . . . . Slashing 8068 | . . . . . . 1778 1707 . . 171 459 2477 212 280 438 134 323 89 Piercing . | . . . . . . . . . . . . . . . . . . . Highest Corruption 3 | . . . . . . 3 2 2 2 2 2 . . . . . . 1 Average Corruption 1 | . . . . . . 3 1 2 2 2 2 . . . . . . 1 Corruption Purged . | . . . . . . . . . . . . . . . . . . . Corruption Blocked . | . . . . . . . . . . . . . . . . . . . Effects 18 | . . . . . . 4 5 2 4 . 3 . . . . . . . Message Errors 5 | . . . . . . 1 1 1 1 . 1 . . . . . . . Matter Fused 3 | . . . . . . . 1 . 2 . . . . . . . . . Energy Discharges 1 | . . . . . . 1 . . . . . . . . . . . . Parts Rejected 1 | . . . . . . . 1 . . . . . . . . . . . Data Loss (minor) 6 | . . . . . . 2 1 1 1 . 1 . . . . . . . Data Loss (major) 1 | . . . . . . . 1 . . . . . . . . . . . Alerts 1 | . . . . . . . . . . . 1 . . . . . . . Overload Shots . | . . . . . . . . . . . . . . . . . . . Overflow Damage 2350 | . . . . . 29 314 377 . . 111 253 575 88 131 85 244 143 . Projectiles 6 | . . . . . 4 . . . . . . 2 . . . . . . Explosions 495 | . . . . . 25 . 158 . . . . 80 . 40 . 170 22 . Melee 1849 | . . . . . . 314 219 . . 111 253 493 88 91 85 74 121 . Knockbacks 5 | . . . . . 5 . . . . . . . . . . . . . Impact . | . . . . . . . . . . . . . . . . . . . Kinetic 4 | . . . . . 4 . . . . . . . . . . . . . Secondary 1 | . . . . . 1 . . . . . . . . . . . . . Self-Inflicted Damage 237 | . . . . . 18 73 86 . . . . 50 . 10 . . . . Shots 6 | . . . . . 1 1 2 . . . . 1 . 1 . . . . Rammed 1 | . 1 . . . . . . . . . . . . . . . . . Targets Rammed 2 | . 2 . . . . . . . . . . . . . . . . . Kicked . | . . . . . . . . . . . . . . . . . . . Crushed 1 | . 1 . . . . . . . . . . . . . . . . . Highest Temperature 420 | 18 90 . . 12 420 32 176 . 159 . . 138 88 131 . 36 60 100 Average Temperature 57 | 12 16 . . 8 76 15 64 . 62 . . 38 48 68 . 11 20 34 Received Heat Transfer 1887 | . 351 . . 18 1128 135 90 . . . . 120 . 9 . . 36 . Effects 6 | . . . . . 6 . . . . . . . . . . . . . Shutdowns 1 | . . . . . 1 . . . . . . . . . . . . . Interference 3 | . . . . . 3 . . . . . . . . . . . . . Matter Decay 1 | . . . . . 1 . . . . . . . . . . . . . Short Circuit 1 | . . . . . 1 . . . . . . . . . . . . . Siege Activations . | . . . . . . . . . . . . . . . . . . . Robots Corrupted . | . . . . . . . . . . . . . . . . . . . Combat Hostiles . | . . . . . . . . . . . . . . . . . . . Parts Fried 1 | . . . . . . 1 . . . . . . . . . . . . Impact Corruptions 3 | . . . . . . 3 . . . . . . . . . . . . Robots Melted . | . . . . . . . . . . . . . . . . . . . Combat Hostiles . | . . . . . . . . . . . . . . . . . . . Parts Melted . | . . . . . . . . . . . . . . . . . . . Heat Transferred 272 | . . . . . . . 50 . . . . 148 . . . . . 74 Parts Sabotaged . | . . . . . . . . . . . . . . . . . . . Parts Stolen . | . . . . . . . . . . . . . . . . . . . Parts Stripped . | . . . . . . . . . . . . . . . . . . . Power Chain Reactions . | . . . . . . . . . . . . . . . . . . . Missiles Intercepted . | . . . . . . . . . . . . . . . . . . . Alert | -11 -10 -10 -10 -9 -8 -7 -6 -6 -6 -6 -5 -5 -5 -5 -5 -4 -4 -4 ------- Run | Jun Mat Min Exi Min Mat Fac Fac Low Low Dat Pro Fac Upp Upp Zhi Pro Fac Arm Peak Influence 1290 | 10 266 51 . 169 1290 1049 1022 . . . . 790 . . . . 744 360 Initial 564 | . 6 51 . . 65 564 496 . . . . 450 . . . . 276 266 Average 429 | 5 146 51 . 115 660 791 445 . . . . 277 . . . . 493 210 Maximum Alert Level 4 | . 1 . . . 4 3 3 . . . . 3 . . . . 3 1 Low Security (%) 33 | 100 78 100 . 100 12 . 9 . . . . 49 . . . . . 53 Level 1 25 | . 21 . . . 25 . 48 . . . . 23 . . . . 28 46 Level 2 13 | . . . . . 11 30 13 . . . . 17 . . . . 51 . Level 3 23 | . . . . . 35 69 28 . . . . 9 . . . . 19 . Level 4 3 | . . . . . 15 . . . . . . . . . . . . . Level 5 . | . . . . . . . . . . . . . . . . . . . High Security . | . . . . . . . . . . . . . . . . . . . Max Security . | . . . . . . . . . . . . . . . . . . . Sterilizations 1 | . . . . . 1 . . . . . . . . . . . . . Squads Dispatched 56 | . 5 . . 1 10 9 15 . . . . 11 . . . . 3 2 Investigation 27 | . 3 . . 1 3 3 9 . . . . 7 . . . . 1 . Extermination 8 | . . . . . . 2 3 . . . . 1 . . . . . 2 Reinforcement 12 | . 2 . . . 3 2 2 . . . . 3 . . . . . . Assault 7 | . . . . . 4 2 1 . . . . . . . . . . . Garrison 2 | . . . . . . . . . . . . . . . . . 2 . Intercept . | . . . . . . . . . . . . . . . . . . . Searches Triggered 2 | . . . . . . . . . . . . 2 . . . . . . Construction Impeded 3 | . . . . . 2 . . . . . . 1 . . . . . . Haulers Reinforced 2 | . . . . . . . . . . . . 2 . . . . . . Active Scanning Responses . | . . . . . . . . . . . . . . . . . . . Cargo Convoy Interrupts 1 | . . . . . . . 1 . . . . . . . . . . . Stealth | -11 -10 -10 -10 -9 -8 -7 -6 -6 -6 -6 -5 -5 -5 -5 -5 -4 -4 -4 --------- Run | Jun Mat Min Exi Min Mat Fac Fac Low Low Dat Pro Fac Upp Upp Zhi Pro Fac Arm Distress Signals 16 | . 2 . . . 6 1 1 . . . 1 2 . . . . 1 2 Communications Jammed 12 | . . . . . . . 4 . . . . 7 . . . 1 . . Distress Signals 4 | . . . . . . . 4 . . . . . . . . . . . Times Spotted 268 | . 33 . . 6 82 26 34 1 3 4 3 37 1 3 . 5 16 14 Peak Tracking Total 14 | . 4 . . 4 10 7 14 3 3 4 2 10 1 3 . 5 8 8 Tactical Retreats 32 | . . . . . 6 5 8 2 1 . . 9 . . . . . 1 Traps | -11 -10 -10 -10 -9 -8 -7 -6 -6 -6 -6 -5 -5 -5 -5 -5 -4 -4 -4 ------- Run | Jun Mat Min Exi Min Mat Fac Fac Low Low Dat Pro Fac Upp Upp Zhi Pro Fac Arm Traps Triggered 6 | . 1 . . . . . 2 . . . . 3 . . . . . . Indirectly . | . . . . . . . . . . . . . . . . . . . Trap Hack Attempts . | . . . . . . . . . . . . . . . . . . . Triggered . | . . . . . . . . . . . . . . . . . . . Disarmed . | . . . . . . . . . . . . . . . . . . . Reprogrammed 7 | . . . . . . . . . . . . 1 . . . . . 6 Reused 3 | . . . . . . . . . . . . . . . . . . 3 Traps Extracted . | . . . . . . . . . . . . . . . . . . . Installed . | . . . . . . . . . . . . . . . . . . . Triggered 5 | . . . . . . . 1 . . . 1 . . . . . . 3 Machines | -11 -10 -10 -10 -9 -8 -7 -6 -6 -6 -6 -5 -5 -5 -5 -5 -4 -4 -4 ---------- Run | Jun Mat Min Exi Min Mat Fac Fac Low Low Dat Pro Fac Upp Upp Zhi Pro Fac Arm Machines Disabled 33 | . . . . . 5 4 17 . . 1 1 2 . . . . 1 2 Max in Single Turn 6 | . . . . . 3 1 6 . . 1 1 1 . . . . 1 1 Garrison Access 5 | . . . . . . 1 1 . . . . 3 . . . . . . Machines Repaired . | . . . . . . . . . . . . . . . . . . . Machines Sabotaged . | . . . . . . . . . . . . . . . . . . . Overloaded Fab Kills . | . . . . . . . . . . . . . . . . . . . Hacking | -11 -10 -10 -10 -9 -8 -7 -6 -6 -6 -6 -5 -5 -5 -5 -5 -4 -4 -4 --------- Run | Jun Mat Min Exi Min Mat Fac Fac Low Low Dat Pro Fac Upp Upp Zhi Pro Fac Arm Machines Accessed 105 | . 7 . 1 1 14 14 16 . 1 4 1 29 . . 4 . 3 10 Terminals 62 | . 5 . . . 11 10 11 . . . . 18 . . . . . 7 Fabricators 10 | . . . . . . 2 2 . . . . 4 . . . . 1 1 Repair Stations 6 | . . . . . 1 . . . . . . 3 . . . . 1 1 Recycling Units 6 | . 2 . . . 1 . 2 . . . . . . . . . . 1 Scanalyzers 4 | . . . . . 1 1 . . . . . 1 . . . . 1 . Garrison Access 5 | . . . . . . 1 1 . . . . 3 . . . . . . Total Hacks 343 | . 25 . 4 1 41 48 50 . 1 29 1 86 . . 17 . 6 34 Successful 218 | . 13 . 4 1 25 22 30 . 1 29 1 45 . . 17 . 5 25 Failed 123 | . 12 . . . 16 26 19 . . . . 41 . . . . 1 8 Catastrophic 15 | . 2 . . . 2 4 2 . . . . 4 . . . . . 1 Database Lockouts 2 | . . . . . . . 1 . . . . . . . . . . 1 Manual 154 | . 16 . . . 20 29 30 . . . . 40 . . . . . 19 Terminals 214 | . 20 . . . 31 41 38 . . . . 61 . . . . . 23 Fabricators 31 | . . . . . . 5 6 . . . . 11 . . . . 4 5 Repair Stations 11 | . . . . . 3 . . . . . . 4 . . . . 1 3 Recycling Units 16 | . 5 . . . 5 . 3 . . . . . . . . . . 3 Scanalyzers 7 | . . . . . 2 1 . . . . . 3 . . . . 1 . Garrison Access 11 | . . . . . . 1 3 . . . . 7 . . . . . . Terminal Hacks 126 | . 6 . 4 1 10 12 15 . 1 29 1 20 . . 17 . . 10 Record 21 | . . . 4 . . . . . . 11 1 . . . 5 . . . Part Schematic 26 | . 2 . . . . 3 3 . . 10 . 2 . . 4 . . 2 Robot Schematic 5 | . . . . . . . . . . 5 . . . . . . . . Robot Analysis 7 | . 1 . . . . . . . . . . 1 . . 4 . . 1 Prototype ID Bank 12 | . 1 . . . 1 . 2 . . 3 . 1 . . 4 . . . Open Door 2 | . . . . 1 . . . . 1 . . . . . . . . . Open DSF 1 | . . . . . . 1 . . . . . . . . . . . . Level Access Points 2 | . . . . . 1 1 . . . . . . . . . . . . Branch Access Points 2 | . . . . . . . 1 . . . . 1 . . . . . . Terminal Index 4 | . 1 . . . . 1 1 . . . . . . . . . . 1 Fabricator Index 3 | . . . . . . 1 1 . . . . . . . . . . 1 Alert Level 5 | . . . . . 3 . . . . . . 2 . . . . . . Unreport Threat 8 | . . . . . 1 . 2 . . . . 5 . . . . . . Locate Traps 3 | . . . . . . . . . . . . 2 . . . . . 1 Reprogram Traps 2 | . . . . . . . . . . . . 1 . . . . . 1 Transport Status 1 | . . . . . 1 . . . . . . . . . . . . . Assault Status 1 | . . . . . . . . . . . . 1 . . . . . . Recall Investigation 3 | . . . . . . . 2 . . . . 1 . . . . . . Recall Extermination 4 | . . . . . . 2 1 . . . . 1 . . . . . . Hauler Manifests 6 | . 1 . . . 2 1 1 . . . . 1 . . . . . . Registered Components 2 | . . . . . . . . . . . . 1 . . . . . 1 Registered Prototypes 1 | . . . . . . 1 . . . . . . . . . . . . Zone Layout 5 | . . . . . 1 1 1 . . . . . . . . . . 2 Fabricator Hacks 22 | . . . . . . 4 5 . . . . 6 . . . . 3 4 Network Status 4 | . . . . . . 1 1 . . . . 1 . . . . 1 . Load Schematic 9 | . . . . . . 1 2 . . . . 3 . . . . 1 2 Build 9 | . . . . . . 2 2 . . . . 2 . . . . 1 2 Repair Station Hacks 8 | . . . . . 2 . . . . . . 3 . . . . 1 2 Scan Component 3 | . . . . . 1 . . . . . . 1 . . . . . 1 Repair 3 | . . . . . 1 . . . . . . 1 . . . . . 1 Refit 2 | . . . . . . . . . . . . 1 . . . . 1 . Recycling Unit Hacks 7 | . 1 . . . 1 . 2 . . . . . . . . . . 3 Recycle Component 1 | . . . . . . . . . . . . . . . . . . 1 Process 1 | . . . . . . . . . . . . . . . . . . 1 Retrieve Matter 1 | . . . . . . . . . . . . . . . . . . 1 Retrieve Components 4 | . 1 . . . 1 . 2 . . . . . . . . . . . Scanalyzer 5 | . . . . . 2 . . . . . . 2 . . . . 1 . Insert Component 3 | . . . . . 1 . . . . . . 1 . . . . 1 . Analyze 2 | . . . . . 1 . . . . . . 1 . . . . . . Garrison Access Hacks 4 | . . . . . . . 1 . . . . 3 . . . . . . Seal Access 4 | . . . . . . . 1 . . . . 3 . . . . . . Unauthorized Hacks 46 | . 6 . . . 10 6 7 . . . . 11 . . . . . 6 Terminals 36 | . 4 . . . 8 6 6 . . . . 7 . . . . . 5 Track 12 | . . . . . 3 1 2 . . . . 4 . . . . . 2 Assimilate 7 | . 1 . . . . 3 . . . . . 1 . . . . . 2 Botnet 12 | . 2 . . . 4 1 2 . . . . 2 . . . . . 1 Detonate 1 | . . . . . . . 1 . . . . . . . . . . . Disrupt 1 | . . . . . 1 . . . . . . . . . . . . . Operators 3 | . 1 . . . . 1 1 . . . . . . . . . . . Fabricators 4 | . . . . . . . . . . . . 3 . . . . . 1 Prioritize 3 | . . . . . . . . . . . . 2 . . . . . 1 Haulers 1 | . . . . . . . . . . . . 1 . . . . . . Repair Stations 1 | . . . . . . . . . . . . 1 . . . . . . Mechanics 1 | . . . . . . . . . . . . 1 . . . . . . Recycling Units 4 | . 2 . . . 2 . . . . . . . . . . . . . Mask 1 | . . . . . 1 . . . . . . . . . . . . . Tunnel 3 | . 2 . . . 1 . . . . . . . . . . . . . Scanalyzers . | . . . . . . . . . . . . . . . . . . . Garrison Access 1 | . . . . . . . 1 . . . . . . . . . . . Watchers 1 | . . . . . . . 1 . . . . . . . . . . . Data Cores Recovered . | . . . . . . . . . . . . . . . . . . . Used . | . . . . . . . . . . . . . . . . . . . Hacking Detections 76 | . 5 . . . 13 13 14 . . . . 22 . . . . 3 6 Full Trace Events 22 | . 1 . . . 2 3 8 . . . . 7 . . . . 1 . Feedback Events 1 | . . . . . . . . . . . . 1 . . . . . . Hackware Fried 1 | . . . . . . . . . . . . 1 . . . . . . Feedback Blocked . | . . . . . . . . . . . . . . . . . . . Robot Schematics Acquired 5 | . . . . . . . . . . 5 . . . . . . . . Robots Built . | . . . . . . . . . . . . . . . . . . . Authchips . | . . . . . . . . . . . . . . . . . . . Time . | . . . . . . . . . . . . . . . . . . . Total Robot Build Rating . | . . . . . . . . . . . . . . . . . . . Part Schematics Acquired 28 | . 2 . . . 1 3 3 . . 10 . 3 . . 4 . . 2 Parts Built 13 | . . . . . . 3 3 . . . . 2 . . . . 2 3 Authchips 2 | . . . . . . . . . . . . . . . . . . 2 Time 547 | . . . . . . 100 142 . . . . 142 . . . . 58 105 Total Part Build Rating 78 | . . . . . . 17 15 . . . . 13 . . . . 14 19 Parts Repaired 3 | . . . . . 1 . . . . . . 1 . . . . . 1 Time 152 | . . . . . 70 . . . . . . 38 . . . . . 44 Parts Recycled 1 | . . . . . . . . . . . . . . . . . . 1 Recycled Matter 114 | . . . . . . . . . . . . . . . . . . 114 Retrieved Matter 114 | . . . . . . . . . . . . . . . . . . 114 Retrieved Components 24 | . 9 . . . 9 . 6 . . . . . . . . . . . Parts Scanalyzed 2 | . . . . . 1 . . . . . . 1 . . . . . . Part Schematics Acquired 2 | . . . . . 1 . . . . . . 1 . . . . . . Parts Damaged 1 | . . . . . 1 . . . . . . . . . . . . . Bothacking | -11 -10 -10 -10 -9 -8 -7 -6 -6 -6 -6 -5 -5 -5 -5 -5 -4 -4 -4 ------------ Run | Jun Mat Min Exi Min Mat Fac Fac Low Low Dat Pro Fac Upp Upp Zhi Pro Fac Arm Used RIF Installer . | . . . . . . . . . . . . . . . . . . . Robots Hacked . | . . . . . . . . . . . . . . . . . . . Non-combat . | . . . . . . . . . . . . . . . . . . . Combat . | . . . . . . . . . . . . . . . . . . . Robot Hacks Applied . | . . . . . . . . . . . . . . . . . . . Relay Couplers Released 1 | . . . . . . 1 . . . . . . . . . . . . Machine Destruction 1 | . . . . . . 1 . . . . . . . . . . . . Fabnet Peak Effective % . | . . . . . . . . . . . . . . . . . . . Robots Rewired . | . . . . . . . . . . . . . . . . . . . Allies Hacked 1 | . . . . . . . 1 . . . . . . . . . . . Hacks Repelled . | . . . . . . . . . . . . . . . . . . . Allies | -11 -10 -10 -10 -9 -8 -7 -6 -6 -6 -6 -5 -5 -5 -5 -5 -4 -4 -4 -------- Run | Jun Mat Min Exi Min Mat Fac Fac Low Low Dat Pro Fac Upp Upp Zhi Pro Fac Arm Total Allies 6 | . 1 . . . . 3 . . . . . 1 . . . . . 1 Largest Group 3 | . 1 1 1 1 1 3 3 . . . . 1 . . . . . 1 Highest-Rated Group 46 | . 10 10 10 10 10 46 46 . . . . 26 . . . . . 26 Highest-Rated Ally 26 | . 10 10 10 10 10 26 26 . . . . 26 . . . . . 26 Total Orders 5 | . . . . . . 2 3 . . . . . . . . . . . STAY 2 | . . . . . . 1 1 . . . . . . . . . . . ROAM 1 | . . . . . . . 1 . . . . . . . . . . . FOLLOW 2 | . . . . . . 1 1 . . . . . . . . . . . Ally Attacks . | . . . . . . . . . . . . . . . . . . . Total Damage . | . . . . . . . . . . . . . . . . . . . Kills . | . . . . . . . . . . . . . . . . . . . Allies Corrupted . | . . . . . . . . . . . . . . . . . . . Allies Melted . | . . . . . . . . . . . . . . . . . . . Intel | -11 -10 -10 -10 -9 -8 -7 -6 -6 -6 -6 -5 -5 -5 -5 -5 -4 -4 -4 ------- Run | Jun Mat Min Exi Min Mat Fac Fac Low Low Dat Pro Fac Upp Upp Zhi Pro Fac Arm Robot Analysis Total 7 | . 1 . . . . . . . . . . 1 . . 4 . . 1 Derelict Logs Recovered 6 | . . . . . . . . . 2 . 2 . 1 . . 1 . . Drone Launches . | . . . . . . . . . . . . . . . . . . . Drone Recoveries . | . . . . . . . . . . . . . . . . . . . Exploration | -11 -10 -10 -10 -9 -8 -7 -6 -6 -6 -6 -5 -5 -5 -5 -5 -4 -4 -4 ------------- Run | Jun Mat Min Exi Min Mat Fac Fac Low Low Dat Pro Fac Upp Upp Zhi Pro Fac Arm Turns Passed 12918 | 85 1312 135 560 265 2407 1280 1327 156 301 48 237 1661 189 122 75 1028 457 1273 Spaces Moved 14699 | 53 682 84 344 138 1225 1604 2970 426 647 90 320 2837 543 322 147 617 452 1198 Core 2 | 2 . . . . . . . . . . . . . . . . . . Treads 1577 | . 326 84 344 138 348 337 . . . . . . . . . . . . Legs 139 | 51 88 . . . . . . . . . . . . . . . . . Wheels 1145 | . 268 . . . 877 . . . . . . . . . . . . . Hover . | . . . . . . . . . . . . . . . . . . . Flight 11836 | . . . . . . 1267 2970 426 647 90 320 2837 543 322 147 617 452 1198 Fastest Speed 25 | 50 110 160 160 160 115 26 30 30 32 32 32 32 32 32 32 32 29 25 Average Speed 52 | 117 137 160 160 160 134 54 30 30 32 32 32 32 32 32 32 37 29 29 Slowest Speed 240 | 120 240 160 160 160 225 145 100 32 32 32 32 106 32 32 32 108 107 109 Overloaded Moves . | . . . . . . . . . . . . . . . . . . . Propulsion Burnouts . | . . . . . . . . . . . . . . . . . . . Robots Hopped 31 | . . . . . . 3 7 . . 1 . 18 . 1 . . 1 . Cave-ins Triggered 1 | . . . . . . 1 . . . . . . . . . . . . Teleports 1 | . . . . . . . . . . . . . . . . . . 1 Exploration Rate (%) 55 | 4 86 28 65 42 81 38 60 69 65 77 52 74 62 48 60 73 13 48 Regions Visited 18 Branch Regions 12 Pre-discovered Areas 9 | . 2 . 1 . 1 . . . 1 1 . . . . 3 . . . Known Exits Taken 13 | . . . . . 1 1 1 1 1 1 1 1 1 1 1 1 1 . Unknown Exits Taken 5 | 1 1 1 1 1 . . . . . . . . . . . . . . Scrap Searched 14 | . . 1 . 2 . . . 3 3 . 1 . 1 2 . 1 . . Spaces Dug 214 | . 3 . . 14 3 18 60 4 16 1 . 44 1 1 . 23 7 19 Terrain Destroyed 800 | . 3 . . 14 169 41 172 4 23 1 . 82 29 46 . 106 80 30 Melee 164 | . . . . . . 18 50 4 13 1 . 40 1 1 . 13 6 17 Projectile 106 | . 3 . . . 16 . 11 . 10 . . 12 . . . 36 8 10 AOE 530 | . . . . 14 153 23 111 . . . . 30 28 45 . 57 66 3 Terrain Rammed . | . . . . . . . . . . . . . . . . . . . Walls Destroyed . | . . . . . . . . . . . . . . . . . . . Machines Disabled . | . . . . . . . . . . . . . . . . . . . Actions | -11 -10 -10 -10 -9 -8 -7 -6 -6 -6 -6 -5 -5 -5 -5 -5 -4 -4 -4 --------- Run | Jun Mat Min Exi Min Mat Fac Fac Low Low Dat Pro Fac Upp Upp Zhi Pro Fac Arm Total 18570 | 69 872 85 356 161 1665 1862 3220 442 706 95 445 3403 548 328 168 1342 738 2065 Wait 2499 | . 33 . . 4 123 93 58 5 21 1 118 361 . . 5 663 254 760 Move 14624 | 52 681 83 343 137 1224 1597 2956 425 646 87 319 2804 542 319 146 616 449 1198 Hop 26 | . . . . . . 3 6 . . 1 . 14 . 1 . . 1 . Pick Up 110 | 6 13 . 5 1 25 14 10 2 . . 1 18 . . 1 1 1 12 Fast Attach 94 | 7 5 . . 1 18 13 11 2 4 . . 19 . . 6 . 1 7 Attach 61 | 1 3 . . . 9 16 8 1 4 . . 9 . . . . 1 9 Detach 24 | 1 2 . . . 1 2 3 . 4 . . 3 . . . . 1 7 Swap 114 | . 11 1 2 2 27 9 22 . . . 2 19 . . . 4 1 14 Drop 167 | . 9 1 6 2 44 29 14 2 4 . 1 32 . . 6 1 2 14 Fire 498 | 2 113 . . 14 194 38 17 . 10 . . 24 2 4 . 42 16 22 Melee 320 | . . . . . . 48 97 5 13 6 4 87 4 4 4 15 11 22 Ram 1 | . 1 . . . . . . . . . . . . . . . . . Kick . | . . . . . . . . . . . . . . . . . . . Crush 1 | . 1 . . . . . . . . . . . . . . . . . Escape Stasis 31 | . . . . . . . 18 . . . . 13 . . . . . . Rewire . | . . . . . . . . . . . . . . . . . . . Trap . | . . . . . . . . . . . . . . . . . . . Miscellaneous . | . . . . . . . . . . . . . . . . . . . Route ------- -11/Junkyard -10/Materials (discovered 3 exits: [*Mat x2] / [*Min]) -10/Mines -10/Exiles -9/Mines -8/Materials (discovered 3 exits: *Fac x3) -7/Factory (discovered 5 exits: *Fac x4 / *Low) -6/Factory (discovered 3 exits: *Fac / *Low x2) -6/Lower Caves -6/Lower Caves -6/Data Miner -5/Proximity Caves -5/Factory (discovered 6 exits: *Fac x2 / *Upp x2 / *Ext x2) -5/Upper Caves -5/Upper Caves (discovered 2 exits: *Fac / *Zhi) -5/Zhirov -4/Proximity Caves -4/Factory (discovered 2 exits: *Upp / *Arm) -4/Armory (discovered 2 exits: *Res / *Lab) History --------- Turn | Location | Event 20 | -11/Junkyard | Discovered new exit (range 15) 86 | -11/Junkyard | Entered Materials 249 | -10/Materials | Discovered new exit (range 7) 302 | -10/Materials | Build established: Mutant 887 | -10/Materials | Discovered new exit (range 15) 1178 | -10/Materials | Core integrity fell below 50% 1353 | -10/Materials | Discovered new exit (range 16) 1398 | -10/Materials | Entered Mines 1398 | -10/Mines | Accompanied by 1 ally 1426 | -10/Mines | Met a Derelict bent on vengeance 1523 | -10/Mines | Deemed a non-threat by the Exiles lab entrance 1525 | -10/Mines | Discovered new exit (range 5) 1533 | -10/Mines | Entered Exiles 1533 | -10/Exiles | Accompanied by 1 ally 1580 | -10/Exiles | Met 8R-AWN 1609 | -10/Exiles | Met EX-HEX 1657 | -10/Exiles | Met EX-BIN 1709 | -10/Exiles | Learned location of Zion (-7) 1785 | -10/Exiles | Met EX-DEC 1935 | -10/Exiles | Discovered new exit (range 14) 2093 | -10/Exiles | Entered Mines 2093 | -9/Mines | Accompanied by 1 ally 2285 | -9/Mines | Met a Derelict shopkeep closing up shop 2337 | -9/Mines | Discovered new exit (range 7) 2358 | -9/Mines | Entered Materials 2358 | -8/Materials | Accompanied by 1 ally 2358 | -8/Materials | Evolved 4 slots: Propulsion x1, Utility x3 2735 | -8/Materials | Build established: Scavenger-Mutant 3509 | -8/Materials | Build established: Mutant 3810 | -8/Materials | Discovered new exit (range 15) 3958 | -8/Materials | First assault squad dispatched 4049 | -8/Materials | Destroyed 8 combat bots 4303 | -8/Materials | Repaired Broken Lgt. Fission Core? 4400 | -8/Materials | Identified exit to Factory 4511 | -8/Materials | Sterilization system engaged 4511 | -8/Materials | Non-combat units ordered to evacuate 4533 | -8/Materials | Destroyed 10 combat bots 4611 | -8/Materials | Combat units ordered to evacuate 4674 | -8/Materials | Build established: Scavenger-Mutant 4765 | -8/Materials | Entered Factory 4765 | -7/Factory | Evolved 2 slots: Propulsion x1, Utility x1 5198 | -7/Factory | Build established: Mutant 5427 | -7/Factory | Fabricated Nuclear Pulse Array (x2) 5443 | -7/Factory | Discovered new exit (range 6) 5444 | -7/Factory | Identified exit to Factory 5749 | -7/Factory | Crushed by falling debris 5769 | -7/Factory | Discovered new exit (range 15) 5773 | -7/Factory | Identified exit to Lower Caves 5920 | -7/Factory | Fabricated Imp. Hacking Suite? 5965 | -7/Factory | First assault squad dispatched 6045 | -7/Factory | Entered another Factory area 6045 | -6/Factory | Accompanied by 3 allies 6045 | -6/Factory | Evolved 2 slots: Utility x2 6091 | -6/Factory | Central database locked down 6162 | -6/Factory | Build established: Hacker-Scout 6165 | -6/Factory | Fabricated Adv. Sensor Array (x1) 6385 | -6/Factory | Spotted B-75 Beast 7058 | -6/Factory | Fabricated Adv. Signal Interpreter? 7095 | -6/Factory | First assault squad dispatched 7167 | -6/Factory | Identified exit to Lower Caves 7188 | -6/Factory | Cargo convoy interrupted 7290 | -6/Factory | Found Prototype Slashing Weapon 7290 | -6/Factory | Identified Centrium Greatsword 7292 | -6/Factory | Found Prototype Processor 7292 | -6/Factory | Identified Spectral Analyzer 7297 | -6/Factory | Discovered new exit (range 24) 7304 | -6/Factory | Lost 3 parts (1p2w) 7319 | -6/Factory | Identified exit to Factory 7372 | -6/Factory | Entered Lower Caves 7397 | -6/Lower Caves | Build established: Hacker-Sprinter 7422 | -6/Lower Caves | Spotted B-75 Beast 7504 | -6/Lower Caves | Found Alien Artifact 7504 | -6/Lower Caves | Identified Core Expander 7504 | -6/Lower Caves | Installed Core Expander, added new Propulsion slot 7525 | -6/Lower Caves | Discovered new exit (range 10) 7527 | -6/Lower Caves | Identified exit to Lower Caves 7528 | -6/Lower Caves | Entered another Lower Caves area 7552 | -6/Lower Caves | Learned Factory terminal intel 7670 | -6/Lower Caves | Encountered a Warlord checkpoint 7817 | -6/Lower Caves | Discovered new exit (range 10) 7820 | -6/Lower Caves | Identified exit to Data Miner 7829 | -6/Lower Caves | Entered Data Miner 7829 | -6/Data Miner | Discovered new exit (range 6) 7836 | -6/Data Miner | Met Data Miner 7844 | -6/Data Miner | Acquired the access code to Warlord's prototype stash 7844 | -6/Data Miner | Learned location of Section 7 (-2) 7847 | -6/Data Miner | Received God Mode back door access code from Data Miner 7855 | -6/Data Miner | Data Conduit disabled 7877 | -6/Data Miner | Identified exit to Proximity Caves 7877 | -6/Data Miner | Entered Proximity Caves 7929 | -5/Proximity Caves | Learned location of 1 exit from Factory 7958 | -5/Proximity Caves | Spotter reported a threat 7960 | -5/Proximity Caves | Spotter reported a threat 7967 | -5/Proximity Caves | Learned Factory terminal intel 8036 | -5/Proximity Caves | Discovered exit to Factory (range 8) 8110 | -5/Proximity Caves | Spotter reported a threat 8114 | -5/Proximity Caves | Entered Factory 8114 | -5/Factory | Evolved 2 slots: Utility x2 8115 | -5/Factory | Identified exit to Upper Caves 8116 | -5/Factory | Loaded intel: 28 terminal locations 8176 | -5/Factory | Destroyed 8 combat bots 8414 | -5/Factory | Search patrols dispatched 8424 | -5/Factory | Imp. Hacking Suite fried by hacking feedback 8594 | -5/Factory | Fabricated Ionic Axe? 8619 | -5/Factory | Identified exit to Extension 8714 | -5/Factory | Search patrols dispatched 8716 | -5/Factory | Build established: Hacker-Scout 8735 | -5/Factory | Found Prototype Launcher 8735 | -5/Factory | Identified Mni. Smartbomb Launcher 8824 | -5/Factory | Spotted B-75 Beast 8972 | -5/Factory | Fabricated Lrn. Sensor Array? 9376 | -5/Factory | Discovered new exit (range 8) 9379 | -5/Factory | Identified exit to Factory 9580 | -5/Factory | Discovered exit to Factory (range 9) 9612 | -5/Factory | Repaired Imp. Utility Shielding 9775 | -5/Factory | Entered Upper Caves 9838 | -5/Upper Caves | Learned Factory stockpile data 9856 | -5/Upper Caves | Encountered a Warlord checkpoint 9899 | -5/Upper Caves | Discovered new exit (range 9) 9901 | -5/Upper Caves | Identified exit to Upper Caves 9964 | -5/Upper Caves | Entered another Upper Caves area 9987 | -5/Upper Caves | Discovered exit to Factory (range 5) 9994 | -5/Upper Caves | Encountered a Warlord checkpoint 10074 | -5/Upper Caves | Discovered new exit (range 11) 10077 | -5/Upper Caves | Identified exit to Zhirov 10086 | -5/Upper Caves | Entered Zhirov 10086 | -5/Zhirov | Discovered new exit (range 3) 10092 | -5/Zhirov | Met Zhirov 10099 | -5/Zhirov | Learned location of Testing (-3) 10099 | -5/Zhirov | Learned location of Quarantine (-2) 10099 | -5/Zhirov | Learned location of Command (-1) 10101 | -5/Zhirov | Zhirov requested help retrieving the SGEMP Prototype 10107 | -5/Zhirov | Found Alien Artifact 10107 | -5/Zhirov | Identified Integrated Dissipator 10107 | -5/Zhirov | Installed Integrated Dissipator, increased core heat dissipation (+20) 10148 | -5/Zhirov | Found Alien Artifact 10161 | -5/Zhirov | Identified exit to Proximity Caves 10161 | -5/Zhirov | Entered Proximity Caves 10173 | -4/Proximity Caves | Learned location of 1 exit from Research 10460 | -4/Proximity Caves | Spotter reported a threat 10704 | -4/Proximity Caves | Build established: Hacker-Sprinter 10776 | -4/Proximity Caves | Spotted B-86 Titan 11178 | -4/Proximity Caves | Discovered exit to Factory (range 5) 11189 | -4/Proximity Caves | Entered Factory 11189 | -4/Factory | Evolved 2 slots: Power x1, Propulsion x1 11191 | -4/Factory | Loaded intel: 26 terminal locations 11244 | -4/Factory | Discovered new exit (range 8) 11246 | -4/Factory | Identified exit to Upper Caves 11275 | -4/Factory | Identified Transdimensional Reconstructor 11342 | -4/Factory | Fabricated Field Propulsion Array? 11498 | -4/Factory | Garrison activated, responded to threat 11640 | -4/Factory | Discovered new exit (range 10) 11646 | -4/Factory | Identified exit to Armory 11646 | -4/Factory | Entered Armory 11650 | -4/Armory | Found Exp. Signal Interpreter 12101 | -4/Armory | Warped through subspace to slip node 12101 | -4/Armory | Discovered new exit (range 1) 12101 | -4/Armory | Identified exit to Lab 12118 | -4/Armory | Central database locked down 12127 | -4/Armory | Found Prototype Processor 12167 | -4/Armory | Discovered new exit (range 4) 12167 | -4/Armory | Identified exit to Research 12347 | -4/Armory | Repaired Mni. Smartbomb Launcher 12605 | -4/Armory | Fabricated Exp. Propulsion Shielding? 12833 | -4/Armory | Fabricated Field Propulsion Array (x2) 12919 | -4/Armory | Self-destructed Last Messages --------------- Initiate build sequence. >>Build Authchip [Propulsion] accepted. Building Field Propulsion Array... ETC: 29 12833_ Fabricator completes Field Propulsion Array. 12833_ Connecting with Fabricator... 12834_ Dropped Impulse Thruster. 12834_ Acquired Field Propulsion Array. 12837_ Dropped Impulse Thruster. 12838_ Acquired Field Propulsion Array. 12839_ Dropped Field Propulsion Array. 12840_ Acquired Field Propulsion Array. 12841_ Dropped Field Propulsion Array. 12896_ ALERT: Rogue bot located, Programmers report to Armory Zone 8W. 12914_ C-30 ARC bursts open, deploying its payload. 12914_ H-77 Assassin unfolds itself. 12917_ Slug penetrates Wall. 12918_ Door malfunctions. Map ----- +----------------------------------------------------+ | + #?# # !! #??????????????????????????????? | | #+## #?# # #??????????????????????????????? | | #?# ######??????????????????????????????? | | ##### #?# #???????######??????????????????????? | | #???# ### #??????? #??????????????????????? | | #???# #?????? """ #??????????????????????? | | #???# #???### """ #??????????????????????? | | #???### #???# + """ #??????????????????????? | | #?????# #???# # """ #??????????????????????? | | #?????# ##### # """ #??????????????????????? | | #?????# +? #??????????????????????? | | +###???# #######?""" #??????????????????????? | | !#?######/#######???"" Y#?????????????????????? | | T #?# #???"" ##?????????????????????? | | #?# #????" #??????????????????????? | | #?# ! #??????????????????????????????? | | #?# !! #??????????????????????????????? | | #?# ! ! #??????????????????????????????? | | =### !!! #??????????????????????????????? | | # # ] #?????????????????????########## | | ### #####################?# | | #+##?# "p sss ## " "### | | #??# s## """p ## """"#### "" | | ###??# ## "R ;; """"#??#""" | | ?????# ## """ ;# """"#??#"F = | | ?????###########+### "" @## h" ""#??#"""= """"""" | | ???????????????# #?# = ## ##?# ""= """""?? | | ???????????????# #?######/#####+##"###### """"""" | | ???????????????# #??????#!!| %"h | | ???????????????# #??????#*= "####"#### | | ################ ######## # = ! # """"""" | | + # """"""" | | s ######+####### # """"""" | | ss # ########+# | | s + ######## | | ##########+######### + ### "" | | #????# ##??# #############??"F?? | | #????# ====== "#### """ """ #?????????????????? | | #????# ====== + + """ """ #?????????????????? | | #????# ##### """ """ #?????????????????? | | #????###########???#############?????????????????? | | | | | | | | | | | | | | | | | | | +----------------------------------------------------+ Best States ------------- Heat Dissipation 63 Energy Generation 33 Energy Capacity 350 Matter Stores 300 Matter Capacity 300 Sight Range 24 Robot Scan Range 18 Terrain Scan Range 20 Terrain Scan Density 210 Jamming Range 14 Armor Coverage 750 Resistance: KI 20 Core Shielding 20 Propulsion Shielding 66 Utility Shielding 66 Evasion (%) 65 Targeting Accuracy 8 Melee Accuracy 8 Recoil Reduction 4 Offensive Hacking 40 Defensive Hacking 14 Authchip Count 1 Item Schematics ----------------- Med. Storage Unit | -10/Materials | Hacked Lrg. Storage Unit | -10/Materials | Hacked Lgt. Fission Core | -8/Materials | Scanalyzed Hacking Suite | -7/Factory | Hacked Imp. Hacking Suite | -7/Factory | Hacked Cmb. Airjet | -7/Factory | Hacked Adv. Sensor Array | -6/Factory | Hacked Field Propulsion Array | -6/Factory | Hacked Adv. Signal Interpreter | -6/Factory | Hacked Adv. Recalibrator | -6/Data Miner | Free Antigrav System | -6/Data Miner | Free Railgun | -6/Data Miner | Free Imp. Cloaking Device | -6/Data Miner | Free Centrium Wheel | -6/Data Miner | Free Ionic Axe | -6/Data Miner | Free Prc. Matter Filter | -6/Data Miner | Free Cld. Nuclear Pulse Thruster | -6/Data Miner | Free Lgt. Regenerative Plating | -6/Data Miner | Free Combat Drone Bay | -6/Data Miner | Free Lrn. Sensor Array | -5/Factory | Hacked Lrn. Terrain Scanner | -5/Factory | Hacked Enh. Fission Core | -5/Factory | Scanalyzed Assault Drone Bay | -5/Zhirov | Free Exp. Optical Array | -5/Zhirov | Free Exp. Heat Sink | -5/Zhirov | Free Imp. Arc Thrower | -5/Zhirov | Free Mic. Antimatter Reactor | -4/Armory | Hacked Exp. Propulsion Shielding | -4/Armory | Hacked Robot Schematics ------------------ M-22 Extractor | -6/Data Miner | Free Y-64 Sentinel | -6/Data Miner | Free L-41 Fighter | -6/Data Miner | Free Y-54 Guardian | -6/Data Miner | Free L-61 Swordsman | -6/Data Miner | Free Fabricated ------------ Nuclear Pulse Array | x2 | -7/Factory | Preloaded Imp. Hacking Suite | x1 | -7/Factory Adv. Sensor Array | x1 | -6/Factory Adv. Signal Interpreter | x2 | -6/Factory Ionic Axe | x1 | -5/Factory Lrn. Sensor Array | x1 | -5/Factory Field Propulsion Array | x2 | -4/Factory Exp. Propulsion Shielding | x1 | -4/Armory | Authchip Field Propulsion Array | x2 | -4/Armory | Authchip Alien Tech Used ----------------- Core Expander Integrated Dissipator Transdimensional Reconstructor Achievements -------------- None Challenges ------------ None Game ------ Seed TacticalIntegratedBattery Manual? 0 Play Time 02:37:11 Cumulative 664.0 hours Start 2023.10.07 @ 16:11:13 End 2023.10.08 @ 17:23:30 Sessions 4 Manual Loads 0 Difficulty Rogue Special Mode None Game No. 411 Rogue 411 Adventurer 0 Explorer 0 Win Type - Total 9 Types 6/0/1/1/1/0/0/0/0 Lore% 87 Gallery% 90 Achievement% 74 Wizard Run 0 Options --------- ASCII 0 Keyboard 0 Movement Mouse Keybinds 1 Fullscreen 2 Font 24/Smallcaps Map View 68x50 Tactical HUD 1 Map Filters NONE Filters NONE Steam 1 RUN: 80ca74f8-295f-40c5-a555-320f8554563b